bitfinex/quotes_BTCUSD_20241111
["timestamp","ask_amount","ask_price","bid_price","bid_amount"]
[1731322954828,0.55502629,81957.0,81950.0,0.1]
[1731322955031,0.137016,81956.0,81950.0,0.1]
[1731322955228,0.26295821,81956.0,81950.0,0.1]
[1731322955407,1.75795821,81956.0,81950.0,0.1]
[1731322955595,1.75295821,81956.0,81950.0,0.1]
[1731322956210,1.75795821,81956.0,81950.0,0.1]
[1731322956735,1.76195821,81956.0,81950.0,0.1]
[1731322956929,1.75995821,81956.0,81950.0,0.1]
[1731322957130,1.75795821,81956.0,81950.0,0.1]
[1731322958356,1.76295821,81956.0,81950.0,0.1]
[1731322958558,1.76195821,81956.0,81950.0,0.1]
[1731322958926,1.75995821,81956.0,81950.0,0.1]
[1731322959121,1.85662775,81956.0,81950.0,0.1]
[1731322959343,2.03163904,81956.0,81950.0,0.1]
[1731322959542,1.9349695,81956.0,81950.0,0.1]
[1731322959975,1.9329695,81956.0,81950.0,0.1]
[1731322960156,1.9309695,81956.0,81950.0,0.1]
[1731322960356,1.9329695,81956.0,81950.0,0.1]
[1731322960656,1.9279695,81956.0,81950.0,0.1]
[1731322961645,1.9309695,81956.0,81950.0,0.1]
[1731322962464,1.9339695,81956.0,81950.0,0.1]
[1731322962655,2.06491171,81956.0,81950.0,0.1]
[1731322962845,1.9469695,81956.0,81950.0,0.1]
[1731322963607,1.96964732,81956.0,81950.0,0.1]
[1731322964854,0.382042,81939.0,81938.0,0.1]
[1731322965049,0.382042,81939.0,81933.0,0.18300829]
[1731322965050,0.127049,81934.0,81933.0,0.18300829]
[1731322965268,0.12705,81933.0,81929.0,0.00138]
[1731322965479,1.64972782,81933.0,81929.0,0.00138]
[1731322965705,1.62705,81933.0,81929.0,0.00138]
[1731322965946,1.75299221,81933.0,81929.0,0.00138]
[1731322966380,1.9210035,81933.0,81929.0,0.00138]
[1731322966724,1.9260035,81933.0,81929.0,0.00138]
[1731322967140,0.127055,81930.0,81929.0,0.00138]
[1731322967337,0.25799721,81930.0,81929.0,0.00138]
[1731322967854,1.88519721,81930.0,81929.0,0.00138]
[1731322968055,2.13519721,81930.0,81929.0,0.00138]
[1731322968278,0.127059,81927.0,81907.0,0.1]
[1731322968476,0.127065,81923.0,81907.0,0.1]
[1731322968676,0.25300721,81923.0,81908.0,0.18300829]
[1731322968873,1.75300721,81923.0,81908.0,0.18300829]
[1731322969410,1.75300721,81923.0,81907.0,0.1]
[1731322969670,1.75400721,81923.0,81919.0,0.0826]
[1731322969873,1.75500721,81923.0,81913.0,0.0826]
[1731322970431,1.76103329,81923.0,81913.0,0.0826]
[1731322970638,1.507,81923.0,81914.0,0.222078]
[1731322970842,1.507,81923.0,81914.0,0.1]
[1731322971041,1.506,81923.0,81915.0,0.122077]
[1731322971239,1.506,81923.0,81915.0,0.244155]
[1731322971556,1.506,81923.0,81915.0,0.122077]
[1731322971759,1.505,81923.0,81914.0,0.1]
[1731322971965,1.5,81923.0,81922.0,0.08368]
[1731322972174,1.5,81923.0,81922.0,0.252247]
[1731322972554,1.5,81923.0,81922.0,0.25565022]
[1731322972758,1.79007629,81923.0,81922.0,0.00478322]
[1731322972973,1.5,81923.0,81922.0,0.00478322]
[1731322973192,1.5,81923.0,81922.0,0.00138]
[1731322974182,1.75300721,81923.0,81922.0,0.00138]
[1731322974517,1.9210185,81923.0,81922.0,0.00138]
[1731322975397,2.04696071,81923.0,81922.0,0.00138]
[1731322975603,1.9210185,81923.0,81922.0,0.00138]
[1731322976109,1.79507629,81923.0,81922.0,0.00138]
[1731322978200,1.9260185,81923.0,81922.0,0.00138]
[1731322979768,1.9210185,81923.0,81922.0,0.00138]
[1731322990392,1.9260185,81923.0,81922.0,0.00138]
[1731322990990,1.9751185,81923.0,81922.0,0.00138]
[1731322991427,1.9751185,81923.0,81914.0,0.04246285]
[1731322991428,0.255,81915.0,81914.0,0.04246285]
[1731322991622,0.255,81915.0,81907.0,0.1]
[1731322991623,0.132088,81908.0,81907.0,0.1]
[1731322991823,0.127095,81903.0,81902.0,0.18300829]
[1731322992029,0.127095,81903.0,81899.0,0.00138]
[1731322992030,0.127097,81902.0,81899.0,0.00138]
[1731322992242,0.005,81901.0,81899.0,0.00138]
[1731322992440,0.005,81900.0,81899.0,0.00138]
[1731322992619,1.63094221,81900.0,81899.0,0.00138]
[1731322993016,1.63094221,81900.0,81899.0,0.123481]
[1731322993017,1.505,81900.0,81899.0,0.123481]
[1731322993382,1.505,81900.0,81899.0,0.122101]
[1731322993514,0.005,81898.0,81897.0,0.321609]
[1731322993714,0.005,81900.0,81899.0,0.122101]
[1731322994165,1.505,81900.0,81899.0,0.122101]
[1731322994337,0.005,81899.0,81898.0,0.122102]
[1731322994904,0.005,81900.0,81897.0,0.0774]
[1731322995105,1.505,81898.0,81897.0,0.199504]
[1731322995315,1.505,81898.0,81897.0,0.0774]
[1731322995520,1.505,81898.0,81895.0,0.1]
[1731322995771,0.16801129,81896.0,81895.0,0.1]
[1731322996042,0.17301129,81896.0,81894.0,0.01841664]
[1731322996247,0.005,81895.0,81894.0,0.01841664]
[1731322996959,1.63094221,81895.0,81889.0,0.1]
[1731322997106,0.005,81890.0,81889.0,0.1]
[1731322997674,1.505,81890.0,81889.0,0.1]
[1731322998113,1.505,81890.0,81889.0,0.218216]
[1731322998314,1.67301129,81890.0,81883.0,0.34425]
[1731322998528,0.17301129,81890.0,81886.0,0.12212]
[1731322998718,0.17301129,81890.0,81883.0,0.1]
[1731322998932,1.5,81884.0,81883.0,0.1]
[1731322999155,1.62594221,81884.0,81883.0,0.1]
[1731322999745,1.62594221,81884.0,81883.0,0.20354845]
[1731322999980,1.62594221,81884.0,81882.0,0.1]
[1731322999981,0.005,81882.0,81881.0,0.00138]
[1731323000099,0.13094221,81882.0,81881.0,0.123508]
[1731323000299,0.005,81881.0,81880.0,0.001382]
[1731323000508,0.005,81881.0,81880.0,0.123511]
[1731323000509,1.505,81881.0,81880.0,0.123511]
[1731323000707,1.5,81881.0,81880.0,0.123511]
[1731323000948,1.5,81881.0,81880.0,0.170211]
[1731323001608,1.5,81881.0,81880.0,0.14297595]
[1731323001765,1.5,81881.0,81878.0,0.122132]
[1731323001968,0.005,81885.0,81878.0,0.1]
[1731323002175,0.12594221,81884.0,81878.0,0.1]
[1731323002370,1.5,81879.0,81878.0,0.1]
[1731323002840,1.505,81879.0,81877.0,0.1]
[1731323002954,0.005,81879.0,81877.0,0.1]
[1731323003159,0.005,81880.0,81877.0,0.1]
[1731323003406,1.5,81878.0,81877.0,0.222133]
[1731323003612,1.5,81878.0,81877.0,0.222134]
[1731323004280,1.5,81878.0,81877.0,0.401834]
[1731323005890,1.5,81878.0,81877.0,0.322134]
[1731323006122,1.5,81878.0,81877.0,0.40617022]
[1731323008433,1.5,81878.0,81877.0,0.32537022]
[1731323009229,1.5,81878.0,81877.0,0.10323622]
[1731323009673,1.62594221,81878.0,81877.0,0.10323622]
[1731323009877,1.74807421,81878.0,81877.0,0.1]
[1731323010507,1.62594221,81878.0,81877.0,0.1]
[1731323010706,1.5,81878.0,81877.0,0.100845]
[1731323010949,1.5,81878.0,81877.0,0.222979]
[1731323011151,1.5,81878.0,81877.0,0.22658921]
[1731323011581,1.5,81878.0,81877.0,0.10445521]
[1731323011961,1.5,81878.0,81877.0,0.22658921]
[1731323012389,1.5,81878.0,81877.0,0.32658921]
[1731323012761,1.5,81878.0,81877.0,0.20445521]
[1731323012997,1.5,81878.0,81877.0,0.32658921]
[1731323014423,1.5,81878.0,81877.0,0.45498921]
[1731323015580,0.18300829,81889.0,81883.0,0.002]
[1731323015862,0.18300829,81889.0,81888.0,0.303518]
[1731323016127,1.68300829,81889.0,81888.0,0.303518]
[1731323016334,1.68300829,81889.0,81888.0,0.30716636]
[1731323016539,1.5,81889.0,81888.0,0.30716636]
[1731323016911,1.5,81889.0,81888.0,0.30916636]
[1731323017111,1.5,81889.0,81888.0,0.35646636]
[1731323017443,1.5,81889.0,81888.0,0.67841986]
[1731323019023,1.5,81889.0,81888.0,0.68424786]
[1731323019220,1.5,81889.0,81888.0,0.51623657]
[1731323019778,1.5,81889.0,81888.0,0.51723657]
[1731323021565,0.00169,81896.0,81895.0,0.252107]
[1731323021764,0.00169,81896.0,81895.0,0.67979553]
[1731323021974,0.00169,81896.0,81895.0,0.67616744]
[1731323022757,0.00169,81896.0,81895.0,0.67735404]
[1731323023762,1e-06,81896.0,81895.0,0.67735404]
[1731323024115,1e-06,81896.0,81895.0,0.50815615]
[1731323024359,1e-06,81896.0,81895.0,0.67616744]
[1731323027902,1e-06,81896.0,81895.0,0.68664024]
[1731323028749,1e-06,81896.0,81895.0,0.6725605]
[1731323029687,1e-06,81896.0,81895.0,0.50454921]
[1731323036607,1e-06,81896.0,81895.0,0.53249668]
[1731323037782,1e-06,81896.0,81895.0,0.89881668]
[1731323038191,1e-06,81896.0,81895.0,0.89966068]
[1731323038390,0.18300829,81909.0,81908.0,0.254288]
[1731323038594,0.18300829,81909.0,81908.0,0.6712415]
[1731323038799,0.18300829,81909.0,81908.0,0.86949021]
[1731323039007,0.001688,81926.0,81917.0,0.250074]
[1731323039235,0.001688,81926.0,81917.0,0.37601621]
[1731323039608,0.001688,81926.0,81925.0,0.222062]
[1731323041360,0.001688,81926.0,81925.0,0.22800807]
[1731323042190,0.21148629,81937.0,81925.0,0.10594607]
[1731323042362,0.21148629,81937.0,81936.0,0.222046]
[1731323042733,1.5491,81937.0,81936.0,0.222046]
[1731323043179,1.5,81937.0,81936.0,0.222046]
[1731323047201,1.5,81937.0,81936.0,0.2283495]
[1731323051011,1.501688,81937.0,81936.0,0.2283495]
[1731323055335,1.501688,81937.0,81936.0,0.3290495]
[1731323055631,0.001688,81937.0,81936.0,0.53296183]
[1731323055833,0.001688,81937.0,81936.0,0.51603019]
[1731323056069,0.18300829,81955.0,81936.0,0.51603019]
[1731323056070,0.18300829,81955.0,81954.0,0.222019]
[1731323056747,0.0472,81962.0,81955.0,0.344034]
[1731323056956,0.0472,81962.0,81960.0,0.1]
[1731323057388,0.0472,81962.0,81960.0,0.22201]
[1731323057799,0.0472,81962.0,81961.0,0.222009]
[1731323058210,0.0472,81962.0,81961.0,0.1]
[1731323058421,1.5472,81962.0,81961.0,0.1]
[1731323059456,1.669207,81962.0,81961.0,0.1]
[1731323059707,1.5472,81962.0,81961.0,0.1]
[1731323059902,1.5472,81962.0,81960.0,0.1]
[1731323060134,1.5472,81962.0,81961.0,0.222009]
[1731323061288,0.0472,81962.0,81961.0,0.222009]
[1731323061500,0.005,81964.0,81958.0,0.244027]
[1731323061501,0.005,81964.0,81962.0,0.222007]
[1731323061742,0.005,81964.0,81962.0,0.1]
[1731323061949,1.50169,81963.0,81962.0,0.1]
[1731323062841,1.50169,81963.0,81962.0,0.222007]
[1731323064500,1.50169,81963.0,81962.0,0.1]
[1731323064708,1.50169,81963.0,81962.0,0.122007]
[1731323064923,1.50169,81963.0,81962.0,0.222007]
[1731323065813,1.50152811,81963.0,81962.0,0.222007]
[1731323066925,1.50152811,81963.0,81960.0,0.222009]
[1731323067177,0.00152811,81963.0,81960.0,0.1]
[1731323067419,0.122008,81962.0,81960.0,0.1]
[1731323067624,0.00152811,81963.0,81960.0,0.1]
[1731323067625,1.5,81961.0,81960.0,0.1]
[1731323067956,1.5,81961.0,81960.0,0.22201]
[1731323068796,1.5482,81961.0,81960.0,0.22201]
[1731323069005,1.5482,81961.0,81959.0,0.1]
[1731323069207,1.5482,81961.0,81960.0,0.12201]
[1731323069409,1.5482,81961.0,81960.0,0.22201]
[1731323071923,1.5482,81961.0,81960.0,0.1]
[1731323072074,1.5482,81961.0,81939.0,0.1803]
[1731323072284,1.5482,81961.0,81957.0,0.122015]
[1731323072455,1.5482,81961.0,81958.0,0.222012]
[1731323072643,1.5482,81961.0,81960.0,0.22201]
[1731323072842,1.5482,81961.0,81960.0,0.1]
[1731323073054,1.5482,81961.0,81960.0,0.22201]
[1731323073659,1.5532,81961.0,81959.0,0.1]
[1731323074089,1.5532,81961.0,81960.0,0.1]
[1731323075138,1.5532,81961.0,81958.0,0.1]
[1731323075566,1.5532,81961.0,81960.0,0.12201]
[1731323075772,1.505,81961.0,81960.0,0.22201]
[1731323077178,1.505,81961.0,81960.0,0.222854]
[1731323080444,1.5,81961.0,81960.0,0.222854]
[1731323086698,0.00152811,81963.0,81962.0,0.229007]
[1731323086875,0.00152811,81963.0,81962.0,0.301707]
[1731323087455,0.00152811,81963.0,81962.0,0.43264921]
[1731323088978,0.00152811,81963.0,81962.0,0.43464921]
[1731323091074,0.00152811,81963.0,81962.0,0.301707]
[1731323091270,0.00152811,81963.0,81962.0,0.30800087]
[1731323091793,1.50152811,81963.0,81962.0,0.30800087]
[1731323092923,1.50152811,81963.0,81962.0,0.38411288]
[1731323093555,1.50152811,81963.0,81962.0,0.30800087]
[1731323095596,1.50152811,81963.0,81962.0,0.31000087]
[1731323095975,1.50152811,81963.0,81962.0,0.43594308]
[1731323096221,1.50152811,81963.0,81962.0,0.48934308]
[1731323096598,0.00152811,81963.0,81962.0,0.48934308]
[1731323096797,0.00152811,81963.0,81962.0,0.48734308]
[1731323097775,0.00152811,81963.0,81962.0,0.48234308]
[1731323098462,0.00152811,81963.0,81962.0,0.48734308]
[1731323099777,0.00152811,81963.0,81962.0,0.48934308]
[1731323100183,0.00152811,81963.0,81962.0,0.48734308]
[1731323101135,0.00152811,81963.0,81962.0,0.48934308]
[1731323101323,0.00152811,81963.0,81962.0,0.49018708]
[1731323102627,0.00152811,81963.0,81962.0,0.48818708]
[1731323105358,0.00152811,81963.0,81962.0,0.43978708]
[1731323109088,0.00152811,81963.0,81962.0,0.44178708]
[1731323110211,0.00152811,81963.0,81962.0,0.65659837]
[1731323110595,0.00152811,81963.0,81962.0,0.67959837]
[1731323110596,1.1e-07,81963.0,81962.0,0.67959837]
[1731323111628,1.1e-07,81963.0,81962.0,0.51158708]
[1731323112278,0.15861329,81984.0,81983.0,0.0899]
[1731323112478,0.15861329,81984.0,81983.0,0.5556295]
[1731323112701,0.18300829,82004.0,81994.0,0.30696]
[1731323112907,0.18300829,82004.0,81994.0,0.6009135]
[1731323113112,0.18300829,82004.0,81994.0,0.63315891]
[1731323113305,1.5,81995.0,81994.0,0.63315891]
[1731323114914,0.000691,82008.0,82007.0,0.12194]
[1731323115121,0.000691,82008.0,82007.0,0.35532072]
[1731323115323,0.000691,82008.0,82007.0,0.6037935]
[1731323115524,0.000691,82008.0,82007.0,0.6057935]
[1731323116415,0.000691,82008.0,82007.0,0.6287935]
[1731323116625,0.000691,82008.0,82007.0,0.46078221]
[1731323117327,0.18300829,82022.0,82011.0,0.228934]
[1731323117486,0.18300829,82022.0,82011.0,0.5458875]
[1731323117653,0.18300829,82022.0,82011.0,0.6779875]
[1731323117845,1.5,82021.0,82011.0,0.6779875]
[1731323118053,0.18469629,82032.0,82011.0,0.6779875]
[1731323118054,0.18469629,82032.0,82014.0,0.12893]
[1731323118264,0.18469629,82032.0,82014.0,0.46281002]
[1731323118633,0.18469629,82032.0,82014.0,0.6283835]
[1731323118634,1.5,82031.0,82014.0,0.6283835]
[1731323118762,0.000997,82027.0,82026.0,0.334312]
[1731323118957,0.000997,82027.0,82026.0,0.6282655]
[1731323119417,0.000997,82027.0,82026.0,0.46025421]
[1731323119619,0.000997,82027.0,82026.0,0.6282655]
[1731323119954,0.000691,82032.0,82031.0,0.251905]
[1731323120181,0.000691,82032.0,82031.0,0.38028455]
[1731323120401,0.000691,82032.0,82031.0,0.5458585]
[1731323120984,0.000691,82032.0,82031.0,0.37784721]
[1731323121172,0.000691,82032.0,82031.0,0.35284721]
[1731323121499,0.000691,82032.0,82031.0,0.35484721]
[1731323122555,0.000691,82032.0,82031.0,9.35484721]
[1731323123327,0.000691,82032.0,82031.0,9.35284721]
[1731323123732,0.000691,82032.0,82031.0,9.35484721]
[1731323124284,0.000691,82032.0,82031.0,9.35284721]
[1731323124852,0.000691,82032.0,82031.0,9.35897039]
[1731323125633,0.000691,82032.0,82031.0,9.25397039]
[1731323125846,0.000691,82032.0,82031.0,9.12802818]
[1731323126048,0.000691,82032.0,82031.0,9.0]
[1731323126245,1.500691,82032.0,82031.0,9.0]
[1731323126624,1.500691,82032.0,82031.0,9.121905]
[1731323126831,1.500691,82032.0,82031.0,9.0]
[1731323127141,1.500691,82032.0,82031.0,9.121905]
[1731323127353,1.500691,82032.0,82031.0,9.221905]
[1731323129037,1.500691,82032.0,82031.0,9.1]
[1731323129595,1.500691,82032.0,82031.0,9.221905]
[1731323131034,1.500691,82032.0,82031.0,9.0]
[1731323131229,2.0617475,82032.0,82031.0,5.30489824]
[1731323131337,1.89373621,82032.0,82031.0,5.30489824]
[1731323131543,1.89373621,82032.0,82031.0,0.00489824]
[1731323131750,0.126933,82012.0,82011.0,0.18385129]
[1731323131961,0.21861129,82012.0,82011.0,0.18385129]
[1731323132413,1.84054429,82012.0,82011.0,0.000843]
[1731323132580,1.9664865,82012.0,82011.0,0.000843]
[1731323132783,2.0353865,82012.0,82011.0,0.000843]
[1731323132990,0.005,81994.0,81993.0,0.18300829]
[1731323133191,0.12696,81994.0,81993.0,0.18300829]
[1731323133398,0.12696,81994.0,81975.0,0.30499629]
[1731323133399,0.005,81985.0,81975.0,0.18300829]
[1731323133600,1.67301129,81985.0,81975.0,0.18300829]
[1731323133803,0.005,81983.0,81975.0,0.18300829]
[1731323134077,0.005,81983.0,81975.0,0.30499629]
[1731323134283,0.005,81983.0,81975.0,0.121988]
[1731323134526,0.005,81983.0,81976.0,0.1]
[1731323134957,0.005,81983.0,81982.0,0.221977]
[1731323136110,0.005,81983.0,81976.0,0.1]
[1731323136320,0.16801129,81981.0,81973.0,0.1]
[1731323136550,0.16801129,81974.0,81964.0,0.122004]
[1731323136816,0.005,81976.0,81970.0,0.18300829]
[1731323136935,0.005,81976.0,81965.0,0.36994821]
[1731323136936,0.005,81976.0,81975.0,0.121987]
[1731323137402,0.005,81975.0,81974.0,0.121989]
[1731323137878,0.005,81975.0,81974.0,0.221989]
[1731323138087,0.005,81975.0,81974.0,0.1]
[1731323138295,0.005,81975.0,81974.0,0.221989]
[1731323138539,0.005,81978.0,81977.0,0.221985]
[1731323139395,0.005,81978.0,81977.0,0.465953]
[1731323139760,1.5,81985.0,81983.0,0.1]
[1731323139761,1.505,81985.0,81983.0,0.1]
[1731323139960,1.505,81985.0,81984.0,0.221975]
[1731323140579,1.5,81985.0,81984.0,0.221975]
[1731323143242,1.500337,81985.0,81984.0,0.221975]
[1731323143443,0.000337,81985.0,81984.0,0.221975]
[1731323144511,0.000337,81985.0,81984.0,0.1]
[1731323144856,0.000337,81985.0,81984.0,0.221975]
[1731323145472,0.000337,81985.0,81984.0,0.1]
[1731323145691,0.000337,81985.0,81984.0,0.121975]
[1731323146019,0.000337,81985.0,81984.0,0.221975]
[1731323146364,0.000337,81985.0,81984.0,0.1]
[1731323146783,0.000337,81985.0,81984.0,0.221975]
[1731323146978,1.500337,81985.0,81984.0,0.221975]
[1731323148425,1.500337,81985.0,81983.0,0.121975]
[1731323148643,1.500337,81985.0,81982.0,0.1]
[1731323148852,1.500337,81985.0,81984.0,0.100844]
[1731323149124,1.500337,81985.0,81984.0,0.222819]
[1731323150009,1.500337,81985.0,81984.0,0.000844]
[1731323150257,1.500337,81985.0,81984.0,0.100844]
[1731323150716,1.500337,81985.0,81984.0,0.222819]
[1731323154254,1.500337,81985.0,81984.0,0.21581896]
[1731323156073,1.500337,81985.0,81984.0,0.46563025]
[1731323156939,1.500337,81985.0,81984.0,0.29761896]
[1731323157368,0.000337,81985.0,81984.0,0.29761896]
[1731323160374,0.000337,81985.0,81984.0,0.29961896]
[1731323160581,0.002025,81985.0,81984.0,0.43202067]
[1731323160786,0.002025,81985.0,81984.0,0.60003196]
[1731323160913,0.002025,81985.0,81984.0,0.42356117]
[1731323161998,0.002025,81985.0,81984.0,0.29761896]
[1731323162200,0.002025,81985.0,81984.0,0.21581896]
[1731323163636,0.002025,81985.0,81977.0,0.243969]
[1731323163637,0.002025,81985.0,81983.0,0.1]
[1731323163836,0.002025,81985.0,81983.0,0.221975]
[1731323164036,0.002025,81985.0,81981.0,0.243956]
[1731323164037,0.002025,81985.0,81982.0,0.1]
[1731323164166,0.070925,81985.0,81984.0,0.1]
[1731323164579,0.005,81981.0,81980.0,0.12198]
[1731323164777,0.005,81982.0,81981.0,0.221979]
[1731323164982,0.005,81982.0,81981.0,0.121979]
[1731323165187,0.005,81982.0,81981.0,0.1]
[1731323165707,0.005,81982.0,81981.0,0.221979]
[1731323166059,0.005,81982.0,81981.0,0.1]
[1731323166279,0.005,81982.0,81981.0,0.221979]
[1731323166484,0.005,81982.0,81981.0,0.22758496]
[1731323166664,0.005,81982.0,81979.0,0.121981]
[1731323166902,0.002025,81985.0,81980.0,0.1]
[1731323166903,0.005,81981.0,81980.0,0.1]
[1731323167145,0.126979,81981.0,81980.0,0.1]
[1731323167305,0.005,81975.0,81971.0,0.1]
[1731323167520,0.126988,81975.0,81971.0,0.1]
[1731323167740,0.121992,81972.0,81971.0,0.1]
[1731323167983,0.121999,81968.0,81962.0,0.000844]
[1731323168191,1.5,81967.0,81962.0,0.000844]
[1731323168395,1.5,81967.0,81964.0,0.122003]
[1731323168805,1.5,81967.0,81962.0,0.000844]
[1731323169013,1.5,81967.0,81966.0,0.122845]
[1731323169217,1.5,81967.0,81966.0,0.222845]
[1731323169862,1.5,81967.0,81966.0,0.100844]
[1731323170071,1.5,81967.0,81966.0,0.000844]
[1731323171087,1.5,81967.0,81966.0,0.100844]
[1731323171498,1.5,81967.0,81966.0,0.222845]
[1731323171692,1.5,81967.0,81966.0,0.100844]
[1731323172077,1.5,81967.0,81966.0,0.000844]
[1731323172719,1.5,81967.0,81966.0,0.222845]
[1731323172937,0.005,81969.0,81968.0,0.221998]
[1731323173170,0.005,81971.0,81970.0,0.121995]
[1731323173347,0.005,81976.0,81969.0,0.1788]
[1731323173550,0.005,81978.0,81977.0,0.121985]
[1731323173982,1.505,81978.0,81977.0,0.121985]
[1731323174640,1.5,81978.0,81977.0,0.121985]
[1731323174851,1.505,81978.0,81977.0,0.221985]
[1731323175021,1.5,81978.0,81977.0,0.221985]
[1731323175684,1.5,81978.0,81977.0,0.39401223]
[1731323176086,1.5,81978.0,81977.0,0.22600094]
[1731323176222,1.5,81978.0,81977.0,0.221985]
[1731323176913,0.18300829,81986.0,81985.0,0.221973]
[1731323177111,0.18090854,81995.0,81986.0,0.1]
[1731323177326,0.18090854,81995.0,81992.0,0.121962]
[1731323177521,0.18090854,81995.0,81988.0,0.243936]
[1731323177729,0.121955,81998.0,81987.0,0.243941]
[1731323178003,0.121955,81998.0,81992.0,0.121962]
[1731323178235,0.121955,81998.0,81986.0,0.1]
[1731323178236,0.008,82000.0,81986.0,0.1]
[1731323178440,0.008,82000.0,81979.0,0.243962]
[1731323178441,1.5,81987.0,81985.0,0.28300829]
[1731323178591,1.5,81987.0,81986.0,0.221972]
[1731323180287,1.5,81987.0,81983.0,0.1]
[1731323180674,1.5,81987.0,81983.0,0.221975]
[1731323181077,0.18300829,81986.0,81983.0,0.1]
[1731323181299,0.121981,81980.0,81973.0,0.18300829]
[1731323181502,0.121985,81977.0,81976.0,0.1]
[1731323181730,0.121982,81979.0,81976.0,0.1]
[1731323181928,1.5,81977.0,81976.0,0.1]
[1731323182532,1.5,81977.0,81974.0,0.1]
[1731323183242,0.12594221,81977.0,81974.0,0.1]
[1731323183705,1.5,81975.0,81974.0,0.1]
[1731323183928,0.12199,81974.0,81968.0,0.121997]
[1731323184112,1.5,81975.0,81966.0,0.100844]
[1731323184320,1.5,81975.0,81972.0,0.1]
[1731323184526,0.121991,81973.0,81968.0,0.1]
[1731323184750,0.122,81967.0,81966.0,0.000844]
[1731323184955,1.622,81967.0,81966.0,0.000844]
[1731323185088,1.74794221,81967.0,81966.0,0.000844]
[1731323185503,1.622,81967.0,81966.0,0.000844]
[1731323185712,1.5,81967.0,81966.0,0.000844]
[1731323186230,1.5,81967.0,81966.0,0.122845]
[1731323186756,1.5,81967.0,81966.0,0.000844]
[1731323187253,1.5,81967.0,81966.0,0.122845]
[1731323187415,1.5,81967.0,81966.0,0.000844]
[1731323190088,1.52412531,81967.0,81966.0,0.000844]
[1731323190454,1.52412531,81967.0,81966.0,0.122845]
[1731323190656,1.52412531,81967.0,81966.0,0.000844]
[1731323191273,1.622,81967.0,81966.0,0.000844]
[1731323192063,1.9209535,81967.0,81966.0,0.000844]
[1731323192269,1.81684221,81967.0,81966.0,0.000844]
[1731323192682,1.84484221,81967.0,81966.0,0.000844]
[1731323192905,1.89074221,81967.0,81966.0,0.000844]
[1731323193167,1.89274221,81967.0,81966.0,0.000844]
[1731323193371,1.97276367,81967.0,81966.0,0.000844]
[1731323193790,1.9148163,81967.0,81966.0,0.000844]
[1731323194218,1.9218163,81967.0,81966.0,0.000844]
[1731323194443,2.6041163,81967.0,81966.0,0.000844]
[1731323194624,2.6041163,81967.0,81962.0,0.000844]
[1731323194625,0.200906,81963.0,81962.0,0.000844]
[1731323194814,0.407009,81961.0,81960.0,0.000844]
[1731323195023,0.53295121,81961.0,81960.0,0.000844]
[1731323195222,2.03295121,81961.0,81960.0,0.000844]
[1731323195425,1.78095121,81961.0,81960.0,0.000844]
[1731323196346,1.79095121,81961.0,81960.0,0.000844]
[1731323197287,1.80733054,81961.0,81960.0,0.000844]
[1731323198637,2.61557275,81961.0,81960.0,0.000844]
[1731323198890,2.48963054,81961.0,81960.0,0.000844]
[1731323199498,2.49163054,81961.0,81960.0,0.000844]
[1731323199918,2.48963054,81961.0,81960.0,0.000844]
[1731323200564,2.73963054,81961.0,81960.0,0.000844]
[1731323202507,2.74163054,81961.0,81960.0,0.000844]
[1731323202965,2.86757275,81961.0,81960.0,0.000844]
[1731323203457,2.73963054,81961.0,81960.0,0.000844]
[1731323204399,1.78433054,81961.0,81960.0,0.000844]
[1731323205543,1.77933054,81961.0,81960.0,0.000844]
[1731323205753,1.78433054,81961.0,81960.0,0.000844]
[1731323208814,1.78422949,81961.0,81960.0,0.000844]
[1731323209787,1.77922949,81961.0,81960.0,0.000844]
[1731323210010,1.78422949,81961.0,81960.0,0.000844]
[1731323210263,1.76422949,81961.0,81960.0,0.000844]
[1731323210507,1.76522949,81961.0,81960.0,0.000844]
[1731323211335,1.76022949,81961.0,81960.0,0.000844]
[1731323211764,1.76122949,81961.0,81960.0,0.000844]
[1731323212108,1.76022949,81961.0,81960.0,0.000844]
[1731323212325,1.75422949,81961.0,81960.0,0.000844]
[1731323212534,1.75522949,81961.0,81960.0,0.000844]
[1731323213618,1.75622949,81961.0,81960.0,0.000844]
[1731323214388,1.50837933,81961.0,81960.0,0.000844]
[1731323214697,1.502,81961.0,81960.0,0.000844]
[1731323215106,1.502,81961.0,81960.0,0.122854]
[1731323215301,1.502,81961.0,81960.0,0.198854]
[1731323215517,1.624009,81961.0,81960.0,0.076844]
[1731323215960,1.624009,81961.0,81960.0,0.071844]
[1731323216284,1.623009,81961.0,81960.0,0.071844]
[1731323216721,1.501,81961.0,81960.0,0.071844]
[1731323217121,1.5,81961.0,81960.0,0.071844]
[1731323218172,1.5,81961.0,81960.0,0.193854]
[1731323220000,1.5,81961.0,81960.0,0.194699]
[1731323220200,1.50169,81961.0,81960.0,0.294699]
[1731323222335,1.623699,81961.0,81960.0,0.072689]
[1731323222539,1.50169,81961.0,81960.0,0.072689]
[1731323223349,1.50169,81961.0,81960.0,0.172689]
[1731323223550,1.50169,81961.0,81960.0,0.294699]
[1731323223775,1.50169,81961.0,81960.0,0.172689]
[1731323223776,1.623699,81961.0,81960.0,0.172689]
[1731323224392,1.623699,81961.0,81960.0,0.000845]
[1731323224393,1.79171029,81961.0,81960.0,0.000845]
[1731323224816,1.623699,81961.0,81960.0,0.000845]
[1731323225738,1.50169,81961.0,81960.0,0.000845]